Cogmind - Beta 10.1 @@@ ROGUE MODE // 2021.05.13 @ 17:29:03 Player: Farfid Result: Escaped! Performance ------------- Evolutions (9) 4500 Regions Visited (30) 6000 Robots Destroyed (331) 1655 Value Destroyed (20693) 20693 Prototype IDs (23) 460 Alien Tech Used (3) 600 Bonus (20347) 20347 TOTAL SCORE: 54255 Bonus ------- High Alert Combat Kills 3857 Follower Combat Kills 9717 Entered Garrisons 1600 Used RIF Installer 4000 Win 3000 Friendly Fire -1827 Cogmind --------- Core Integrity 195/1600 Matter 268/300 Energy 770/780 System Corruption 10% Temperature Cool (9) Movement Treading (185) Ox1 Location To Epsilon Eridani Parts ------- > --- POWER (2) -------- Light Quantum Reactor Light Quantum Reactor > --- PROPULSION (3) --- Medium Treads Advanced Heavy Siege Treads > --- UTILITY (17) ----- Advanced Heat Sink Advanced Heat Sink High-capacity Storage Unit High-capacity Storage Unit High-capacity Storage Unit Energy Well Improved Targeting Computer Advanced Core Analyzer Improved Core Shielding Improved Core Shielding Relay Coupler [NC] (5) Relay Coupler [Swarmer] (7) Relay Coupler [Brawler] (39) Relay Coupler [Sentry] (12) Relay Coupler [Behemoth] (14) > --- WEAPON (3) ------- Compact Mass Driver > --- INVENTORY (28) --- Reinforced Quantum Reactor Armored Heavy Treads Armored Wheel Centrium Wheel Advanced Cooling System Compact Battery (300) Advanced Melee Analysis Suite Relay Coupler [Swarmer] (54) Relay Coupler [Sentry] (37) Relay Coupler [Sentry] (30) Transdimensional Reconstructor Nova Cannon Nova Cannon Nova Cannon Core Cannon Multirail Linear Accelerator Core Stripper Peak State ------------ > --- POWER ------------ Particle Reactor Light Quantum Reactor > --- PROPULSION ------- Armored Wheel Centrium Wheel Centrium Wheel > --- UTILITY ---------- Advanced Cooling System High-capacity Storage Unit High-capacity Storage Unit High-capacity Storage Unit Advanced Energy Well Advanced Transmission Jammer Improved Core Shielding Improved Core Shielding Phase Armor Relay Coupler [NC] Relay Coupler [Swarmer] Relay Coupler [Grunt] Relay Coupler [Sentry] Relay Coupler [Hunter] Relay Coupler [Behemoth] System Restoration Module > --- WEAPON ----------- Multirail Multirail Advanced Remote Datajack > --- INVENTORY -------- Light Quantum Reactor Armored Wheel Armored Wheel Improved Core Shielding Relay Coupler [Swarmer] Relay Coupler [Swarmer] Relay Coupler [Grunt] Relay Coupler [Grunt] Relay Coupler [Brawler] Relay Coupler [Duelist] Relay Coupler [Sentry] Relay Coupler [Sentry] Transdimensional Reconstructor Gamma Rifle Enhanced Quantum Rifle Compact HERF Cannon Core Cannon Heavy Machine Gun Multirail Compact Mass Driver Gamma Bomb Array Gamma Bomb Array Advanced Remote Datajack Core Stripper [Rating: 176] Favorites ----------- Power Light Antimatter Reactor Engine F-cell Engine Power Core Micro Nuclear Core Reactor Light Antimatter Reactor Propulsion Armored Wheel Treads Light Treads Leg Myomer Leg Wheel Armored Wheel Utility High-capacity Storage Unit Device Advanced Heat Sink Storage High-capacity Storage Unit Processor Improved Targeting Computer Hackware Relay Coupler [Grunt] Protection Powered Armor Artifact Phase Armor Weapon Remote Datajack Energy Gun Beam Rifle Energy Cannon Enhanced Nova Cannon Ballistic Gun Heavy Assault Rifle Ballistic Cannon Heavy Flak Cannon Launcher Gamma Bomb Array Special Weapon Remote Datajack Impact Weapon Powered Hammer Slashing Weapon Axe Piercing Weapon Enhanced Force Lance Special Melee Weapon Improved Datajack Build | -11 -10 -10 -9 -9 -9 -8 -8 -8 -8 -8 -7 -7 -7 -7 -6 -6 -6 -6 -5 -5 -5 -4 -4 -3 -3 -3 -2 -1 -1 -1 ------- Run | Scr Mat Min Mat Min Exi Min Mat Gar Mat Gar Fac Gar Fac Gar Fac Low Low Zio Pro Fac Gar Fac Gar Res Qua Gar Res Acc Gar Acc Slots Evolved 18 | . . . 2 . . . 2 . . . 2 . . . 2 . . . . 2 . 2 . 2 . . 2 2 . . Power 1 | . . . . . . . . . . . . . . . . . . . . . . . . 1 . . . . . . Propulsion 1 | . . . . . . . . . . . . . . . 1 . . . . . . . . . . . . . . . Utility 15 | . . . 2 . . . 1 . . . 2 . . . 1 . . . . 2 . 2 . 1 . . 2 2 . . Weapon 1 | . . . . . . . 1 . . . . . . . . . . . . . . . . . . . . . . . Parts Attached 496 | 5 16 8 5 10 1 5 31 35 10 23 15 21 4 10 5 5 1 2 3 3 30 8 20 15 31 38 7 . 37 92 Power 44 | 1 1 1 . 1 . . 2 2 . . 1 2 . 1 1 . . . . 1 2 1 . 4 2 4 1 . 4 12 Engine 8 | 1 1 1 . . . . 1 . . . 1 1 . 1 1 . . . . . . . . . . . . . . . Core 8 | . . . . 1 . . 1 2 . . . 1 . . . . . . . 1 2 . . . . . . . . . Reactor 28 | . . . . . . . . . . . . . . . . . . . . . . 1 . 4 2 4 1 . 4 12 Propulsion 60 | 2 4 1 . 3 . . 4 10 1 4 . 3 . 1 1 . . . 2 . 4 . 3 2 2 7 . . 1 5 Treads 11 | . . . . . . . . 4 . 2 . 1 . . . . . . . . . . . . . . . . . 4 Leg 6 | . . . . . . . . 3 . . . . . . . . . . . . . . . . . 3 . . . . Wheel 43 | 2 4 1 . 3 . . 4 3 1 2 . 2 . 1 1 . . . 2 . 4 . 3 2 2 4 . . 1 1 Hover . | . . . . . . . . . . . . . . . . . . . . . . . . . . . . . . . Flight . | . . . . . . . . . . . . . . . . . . . . . . . . . . . . . . . Utility 180 | 1 4 . 4 2 1 2 9 8 4 5 4 7 2 4 1 . 1 2 1 2 16 6 10 2 11 14 1 . 21 35 Device 49 | . 2 . . 1 . 2 2 1 . 1 . . . . . . . . . 1 2 2 2 1 6 8 1 . 7 10 Storage 15 | 1 2 . . . 1 . 1 2 . . . . . . . . . . . . 1 . 1 . 1 1 . . 1 3 Processor 4 | . . . 1 . . . . . . . . . . . . . . . . . . . . . . . . . . 3 Hackware 51 | . . . . . . . 1 . 4 2 3 3 2 2 . . 1 1 . 1 8 2 6 . 3 3 . . 3 6 Protection 58 | . . . 3 1 . . 5 5 . 2 1 4 . 2 1 . . 1 1 . 5 2 1 1 . 2 . . 8 13 Artifact 3 | . . . . . . . . . . . . . . . . . . . . . . . . . 1 . . . 2 . Weapon 212 | 1 7 6 1 4 . 3 16 15 5 14 10 9 2 4 2 5 . . . . 8 1 7 7 16 13 5 . 11 40 Energy Gun 30 | 1 3 1 . 1 . 1 6 4 1 2 . 1 . . . . . . . . 1 . 1 . 2 1 1 . 1 2 Energy Cannon 36 | . . . . . . . 1 3 . . . . . . 1 2 . . . . . . 1 1 5 3 2 . 3 14 Ballistic Gun 69 | . 3 3 1 2 . 1 7 2 1 4 3 2 . 1 1 . . . . . 3 1 2 4 7 5 2 . 5 9 Ballistic Cannon 4 | . . . . . . . . . . . . . . 1 . . . . . . 1 . . . . . . . . 2 Launcher 26 | . 1 2 . 1 . 1 2 3 1 4 2 1 1 . . . . . . . . . . . . 1 . . 1 5 Special Weapon 25 | . . . . . . . . . . . 4 3 1 1 . 1 . . . . 2 . 2 1 1 2 . . . 7 Impact Weapon 6 | . . . . . . . . . . . 1 1 . . . . . . . . . . . . 1 1 . . 1 1 Slashing Weapon 7 | . . . . . . . . 2 . 1 . 1 . 1 . 1 . . . . 1 . . . . . . . . . Piercing Weapon 2 | . . . . . . . . . . . . . . . . . . . . . . . 1 1 . . . . . . Special Melee Weapon 7 | . . . . . . . . 1 2 3 . . . . . 1 . . . . . . . . . . . . . . Unidentified Prototypes 15 | . . . 1 . . . 1 . . . 1 . . . 2 . . . . 1 . . . 1 5 . 1 . 1 1 Parts Lost 124 | . 9 3 . 5 . 4 5 11 1 5 1 4 1 . . . . . 2 1 6 . 3 . 12 6 . . 2 43 Power 11 | . 1 . . 1 . . . . . . . 1 . . . . . . . . . . . . 2 1 . . . 5 Propulsion 24 | . 3 . . 2 . . 1 3 . 2 . 1 . . . . . . 2 . 2 . . . 2 1 . . . 5 Utility 38 | . 1 . . 1 . 2 1 2 . 1 1 1 . . . . . . . . 4 . 2 . 3 1 . . 2 16 Weapon 51 | . 4 3 . 1 . 2 3 6 1 2 . 1 1 . . . . . . 1 . . 1 . 5 3 . . . 17 Highest Loss Streak 12 | . 5 3 . 5 . 4 3 8 1 2 1 2 1 . . . . . 1 1 5 . 1 . 12 6 . . 1 8 Average Slot Usage (%) 95 | . 86 97 91 98 100 96 95 98 99 94 94 95 99 100 96 100 100 100 93 83 94 96 96 97 92 93 88 84 92 95 Engine 2 | . 13 14 11 . . . 2 . . . 5 1 7 7 6 6 6 6 6 3 . . . . . . . . . . Core 2 | . . . . 10 11 11 6 9 9 9 1 2 . . . . . . . 1 5 1 . . . . . . . . Reactor 2 | . . . . . . . . . . . . . . . . . . . . . . 3 5 9 8 9 8 8 7 7 Treads 1 | . . . . . . . . 11 . 5 . 5 . . . . . . . . . . . . . . . . . . Wheel 13 | . 26 28 22 21 22 22 17 4 18 10 15 8 15 15 18 20 20 20 19 17 16 15 15 14 13 6 13 12 12 10 Device 5 | . 4 14 9 4 11 19 11 9 . 1 . . . . . . . . . . . 7 10 13 14 7 10 12 13 8 Storage 18 | . 14 14 11 11 11 11 14 18 27 27 23 23 23 23 20 20 20 20 20 17 17 21 17 19 19 15 13 12 15 15 Hackware 17 | . . . . . . . . . 8 6 17 15 28 23 20 20 24 26 16 14 19 26 23 21 18 27 26 24 23 24 Protection 9 | . . . 6 17 11 . 10 16 9 9 7 13 . 6 11 13 7 6 10 11 15 4 6 4 3 4 4 4 5 11 Energy Gun 1 | . 16 . . . . 10 6 1 . 6 . . . . . . . . . . . . . . . . . . . . Energy Cannon 2 | . . . . . . . 3 4 . . . . . . . 5 6 6 6 3 . . . . 2 2 4 4 3 3 Ballistic Gun 8 | . 9 13 22 21 22 11 15 17 17 14 15 14 15 8 5 . . . . . 4 5 8 8 4 5 3 4 3 3 Ballistic Cannon 1 | . . . . . . . . . . . . . . 5 6 6 6 6 6 5 5 5 1 . . . . . . . Special Weapon 3 | . . . . . . . . . . . 5 6 6 6 6 6 6 6 6 5 4 5 4 3 3 4 4 4 4 3 Naked Turns . | . . . . . . . . . . . . . . . . . . . . . . . . . . . . . . . Heaviest Build 213 | 9 27 30 33 33 47 45 99 122 125 125 128 127 124 130 141 144 144 137 141 141 148 153 152 160 201 170 168 166 210 213 Greatest Support 110 | 26 26 20 20 32 32 32 32 40 26 40 32 32 24 24 40 40 40 40 40 40 40 36 36 40 42 75 48 48 48 110 Greatest Overweight (x) 10 | . 2 1 1 1 1 1 4 9 5 7 3 7 5 5 5 3 3 3 5 3 5 4 4 5 7 10 3 3 4 4 Average Overweight (x) 3 | . . 1 1 . . 1 3 3 4 3 3 6 4 4 3 3 3 3 3 3 3 3 3 3 3 2 3 3 3 3 Largest Inventory Capacity 28 | 6 14 10 10 10 12 12 20 28 28 28 28 28 28 28 28 28 28 28 28 28 28 28 28 28 28 28 28 28 28 28 Average Capacity 26 | 5 9 10 10 10 11 12 17 20 28 28 28 28 28 28 28 28 28 28 28 28 28 28 28 28 28 28 28 28 28 28 Most Carried 28 | 3 8 9 10 10 12 12 20 25 26 28 28 28 28 28 28 28 28 28 28 27 28 28 28 28 28 28 28 28 28 28 Average Carried 24 | 1 4 8 9 9 10 11 16 16 24 25 27 27 27 26 27 27 27 27 26 26 27 27 27 27 27 26 27 28 27 26 Final Capacity 28 | 6 10 10 10 10 12 12 20 28 28 28 28 28 28 28 28 28 28 28 28 28 28 28 28 28 28 28 28 28 28 28 Final Carried 28 | 3 8 9 10 10 12 12 20 25 26 26 28 28 26 27 27 28 28 28 26 27 28 28 28 28 27 28 28 28 28 21 Class Distribution -------------------- 59% | Botlord-Mutant 23% | Bothacker-Mutant 6% | Scavenger-Mutant 3% | Mutant Dominant Class ---------------- Mutant | -10/Materials Mutant | -10/Mines Mutant | -9/Materials Scavenger-Mutant | -9/Mines Scavenger-Mutant | -9/Exiles Scavenger-Mutant | -8/Mines Hauler-Tank | -8/Materials Scavenger-Mutant | -8/Garrison Bothacker-Mutant | -8/Materials Bothacker-Mutant | -8/Garrison Bothacker-Mutant | -7/Factory Bothacker-Mutant | -7/Garrison Bothacker-Mutant | -7/Factory Bothacker-Mutant | -7/Garrison Botlord-Mutant | -6/Factory Botlord-Mutant | -6/Lower Caves Botlord-Mutant | -6/Lower Caves Botlord-Mutant | -6/Zion Botlord-Mutant | -5/Proximity Caves Botlord-Mutant | -5/Factory Botlord-Mutant | -5/Garrison Botlord-Mutant | -4/Factory Botlord-Mutant | -4/Garrison Botlord-Mutant | -3/Research Botlord-Mutant | -3/Quarantine Botlord-Mutant | -3/Garrison Botlord-Mutant | -2/Research Botlord-Mutant | -1/Access Botlord-Mutant | -1/Garrison Botlord-Mutant | -1/Access Resources | -11 -10 -10 -9 -9 -9 -8 -8 -8 -8 -8 -7 -7 -7 -7 -6 -6 -6 -6 -5 -5 -5 -4 -4 -3 -3 -3 -2 -1 -1 -1 ----------- Run | Scr Mat Min Mat Min Exi Min Mat Gar Mat Gar Fac Gar Fac Gar Fac Low Low Zio Pro Fac Gar Fac Gar Res Qua Gar Res Acc Gar Acc Matter Collected 12783 | 228 202 169 78 302 . 63 574 731 222 442 159 706 148 517 86 116 70 265 223 61 874 145 606 332 574 821 9 . 896 3164 Remotely 247 | . . 169 78 . . . . . . . . . . . . . . . . . . . . . . . . . . . Salvage Created 16501 | . 686 164 78 605 . 123 1182 1013 246 465 67 744 73 361 127 25 209 510 215 104 604 . 874 137 172 609 9 . 1222 5877 Parts 722 | . 29 14 3 42 . 9 64 57 15 27 9 37 2 9 6 2 10 39 11 4 21 . 26 14 6 8 3 . 22 233 Haulers Intercepted 3 | . 1 . . . . . 2 . . . . . . . . . . . . . . . . . . . . . . . Recyclers Shooed 18 | . 2 1 . . . . . . . . . . . . . . . . . . . . . . . . . . . 15 Parts Field Recycled . | . . . . . . . . . . . . . . . . . . . . . . . . . . . . . . . Retrieved Matter . | . . . . . . . . . . . . . . . . . . . . . . . . . . . . . . . Parts Self-Destructed 81 | . . . . . . . . . . . . . . . . 22 28 . 31 . . . . . . . . . . . Prevented 9 | . . . . . . . . . . . . . . . . 3 4 . 2 . . . . . . . . . . . Kills | -11 -10 -10 -9 -9 -9 -8 -8 -8 -8 -8 -7 -7 -7 -7 -6 -6 -6 -6 -5 -5 -5 -4 -4 -3 -3 -3 -2 -1 -1 -1 ------- Run | Scr Mat Min Mat Min Exi Min Mat Gar Mat Gar Fac Gar Fac Gar Fac Low Low Zio Pro Fac Gar Fac Gar Res Qua Gar Res Acc Gar Acc Combat Hostiles Destroyed 260 | . 10 8 1 13 . 2 22 27 7 20 7 17 3 2 . 1 3 2 8 3 7 . 10 2 2 5 . . 14 64 Guns 109 | . 7 1 1 10 . . 11 13 5 8 . 14 2 . . . . . . . 5 . 7 2 2 1 . . . 20 Cannons 66 | . . . . . . . 5 4 . . . . . 2 . 1 2 1 7 3 2 . 1 . . 3 . . 10 25 AOE 59 | . 3 7 . 3 . 2 6 10 1 10 7 3 1 . . . 1 . . . . . . . . . . . . 5 Classes Destroyed 23 | . 7 . 2 . . . 2 1 1 2 . 1 . . . . 1 3 . . . . . . 1 . . . 1 1 Worker 11 | . 1 . . 2 . . 2 . . . . . . . . . . . . 1 . . . . . . 1 . . 4 Builder 9 | . 1 1 . 1 . . . . . . . . . . . . . . . . . . . . . . . . . 6 Tunneler 4 | . 1 . . . . 1 . . . . . . . . . . . . . . . . . . . . . . . 2 Hauler 3 | . 1 . . . . . 2 . . . . . . . . . . . . . . . . . . . . . . . Recycler 15 | . 3 . . 2 . . 1 . . . . . . . 1 . . . . . . . . . . . . . . 8 Mechanic 1 | . . . . . . . . . . . . . . . . . . . . . . . . . . . . . . 1 Operator 5 | . . . . . . . 4 . . . . . . . . . . . . . . . . . . . . . . 1 Watcher 1 | . . . 1 . . . . . . . . . . . . . . . . . . . . . . . . . . . Swarmer 75 | . 3 4 . 8 . . 3 11 3 10 7 12 2 . . 1 . . 7 . 2 . . . . . . . 2 . Saboteur 3 | . . . . . . . . . . . . . . . . . . . . . . . . . . . . . 1 2 Grunt 97 | . 7 4 . 3 . 2 13 5 2 5 . 4 1 4 . . 2 . . . 2 . 8 . . 4 . . 10 21 Brawler 6 | . . . . . . . . . . . . 1 . . . . . . 1 . . . . . . . . . . 4 Duelist 7 | . . . . . . . 1 2 . . . . . . . . . . . . 1 . . . . . . . . 3 Protector 2 | . . . . . . . . . . 1 . . . . . . . . . . . . . . . . . . . 1 Researcher 1 | . . . . . . . . . . . . . . . . . . . . . . . . . 1 . . . . . Sentry 21 | . . . 1 2 . . 5 8 1 2 . . . . . . . . . . . . . . . . . . 1 1 Demolisher 1 | . . . . . . . . . . 1 . . . . . . . . . . . . . . . . . . . . Hunter 16 | . . . . . . . . 1 . 2 . . . . . . . . . . . . . . . 1 . . . 12 Programmer 32 | . . . . . . . . . 1 . . . . . . . . . . 3 2 . 2 2 2 . . . . 20 Behemoth 1 | . . . . . . . . . . . . . . . . . 1 . . . . . . . . . . . . . Zionite 15 | . . . . . . . . . . . . . . . . . . 15 . . . . . . . . . . . . Tinkerer 2 | . . . . . . . . . . . . . . . . . . 2 . . . . . . . . . . . . Thug 1 | . . . . 1 . . . . . . . . . . . . . . . . . . . . . . . . . . Marauder 1 | . . . . . . . . . . . . . . . . . . 1 . . . . . . . . . . . . Mutant 1 | . . . . . . . . . . . . . . . . . . 1 . . . . . . . . . . . . Best Kill Streak 10 | . 6 3 1 5 . 2 4 5 3 6 4 4 2 1 1 1 2 6 3 2 2 . 3 1 1 2 1 . 3 10 Combat Bots Only 8 | . 5 2 1 3 . 2 3 5 3 6 4 4 2 1 . 1 2 1 3 2 2 . 3 1 1 2 . . 3 8 Max Kills in Single Turn 4 | . 4 2 1 3 . 2 2 3 1 3 3 3 1 1 1 1 1 1 1 1 1 . 1 1 1 1 1 . 1 3 Gunslinging 1 | . . . . . . . . . . 1 . . . . . . . . . . . . . . . . . . . . Exploded 3 | . 2 1 . 3 . 2 2 3 1 3 3 3 1 . . . 1 . . . . . . . . . . . . 2 Melee . | . . . . . . . . . . . . . . . . . . . . . . . . . . . . . . . Uniques/NPCs Destroyed 1 | . . . . . . . . . . . . . . . . . . 1 . . . . . . . . . . . . Imprinter (-6/Zion) Combat | -11 -10 -10 -9 -9 -9 -8 -8 -8 -8 -8 -7 -7 -7 -7 -6 -6 -6 -6 -5 -5 -5 -4 -4 -3 -3 -3 -2 -1 -1 -1 -------- Run | Scr Mat Min Mat Min Exi Min Mat Gar Mat Gar Fac Gar Fac Gar Fac Low Low Zio Pro Fac Gar Fac Gar Res Qua Gar Res Acc Gar Acc Damage Taken 26003 | . 620 245 74 564 . 227 876 1982 437 1089 230 1223 196 186 74 139 207 410 361 342 985 55 530 217 1984 1225 76 . 1014 10435 Core 3374 | . 125 55 14 90 . 49 90 173 45 95 13 123 30 27 16 17 . 75 42 60 124 12 11 107 507 129 . . 31 1314 Absorbed by Shields 1457 | . . . . . . . . . . 21 . . 21 12 70 44 36 275 224 . 285 36 170 . . 176 . . 87 . Reduced by Siege Mode 404 | . . . . . . . . . . . . . . . . . . . . . . . . . . . . . . 404 Redirected to Core 873 | . . . . . . . . . . . . . . . . . . . . . . . . . . . . . 10 863 Core Remaining (%) 63 | 100 . 28 . . . 61 . . . 26 . . . 72 . . . . 82 . 81 . 98 . . 42 100 . . 12 Volleys Fired 1517 | . 49 16 6 34 . 3 63 79 19 57 7 74 29 56 11 16 22 81 46 24 59 16 67 25 74 67 4 . 101 412 Largest 3 | . 2 2 2 2 . 2 3 3 2 3 1 2 2 2 1 1 1 1 1 1 2 1 2 2 1 2 1 . 2 2 Hottest 300 | . 60 60 43 68 . 79 144 143 56 102 39 80 50 78 30 75 75 75 75 53 86 53 88 90 300 120 50 . 150 300 Shots Fired 1995 | . 79 20 12 65 . 5 157 155 31 76 7 121 40 64 11 16 22 81 46 24 68 16 77 35 73 85 4 . 117 488 Gun 992 | . 78 11 12 63 . 4 133 110 28 69 . 102 25 27 2 . . . . . 27 1 34 20 31 40 1 . 21 153 Cannon 554 | . . . . . . . 18 35 . . . . . 15 . 5 14 81 39 18 15 2 11 3 12 32 . . 59 195 Launcher 79 | . 1 9 . 2 . 1 6 10 3 7 4 1 2 . . . . . . . . . . . . . . . 5 28 Special 370 | . . . . . . . . . . . 3 18 13 22 9 11 8 . 7 6 26 13 32 12 30 13 3 . 32 112 Kinetic 916 | . 31 7 12 60 . 3 87 92 24 38 . 91 25 42 2 2 . 35 24 18 42 3 36 20 12 35 1 . 21 153 Thermal 388 | . 2 . . . . 1 61 42 4 19 . . . . . . . . . . . . . 3 20 10 . . 54 172 Explosive 46 | . 1 9 . 2 . 1 6 10 3 7 4 1 2 . . . . . . . . . . . . . . . . . Electromagnetic 275 | . 45 4 . 3 . . 3 11 . 12 . 11 . . . 3 14 46 15 . . . 9 . 11 27 . . 10 51 Robot Hit Streak 29 | . 8 6 7 22 . 7 29 14 14 9 2 8 9 12 3 8 5 9 5 5 18 23 17 6 15 7 2 . 10 18 Robot Miss Streak 10 | . 4 1 2 3 . . 4 5 4 2 1 3 3 5 1 4 4 6 10 5 5 5 3 2 2 4 1 . 5 7 Penetration Max 2 | . . . . . . . . . 1 . . . . . 1 . . . . . 1 . 1 1 . . . . . 2 Secondary Targets 5 | . . . . 1 . . . 1 . 1 . 1 . . . . . . . . . . . . . . . . . 1 Max Gunslinging Chain 1 | . . . . 1 . . . 1 . 1 . 1 . . . . . . . . . . . . . . . . . 1 Capacitor 39 | . . . . . . . . . . . . . . . . . . . . . . . 9 . 30 . . . . . Shots Hit Robots 1374 | . 49 13 9 40 . 4 100 92 32 59 6 71 27 61 7 13 13 59 30 22 59 14 56 23 53 45 2 . 62 353 Core Hits 688 | . 29 14 4 24 . 4 56 45 10 28 8 30 7 23 1 2 3 38 23 13 22 4 21 5 5 17 1 . 26 225 Critical Hits 29 | . . . . . . . . . 1 . . 3 . 1 1 . . . . . 5 . 2 3 5 1 . . 1 6 Critical Kills 10 | . . . . . . . . . 1 . . 3 . . 1 . . . . . 2 . 2 1 . . . . . . Critical Parts Destroyed 19 | . . . . . . . . . . . . . . 1 . . . . . . 3 . . 2 5 1 . . 1 6 Melee Attacks 136 | . . . . . . . . 15 19 33 3 10 . 18 . 6 . . . . 12 . 5 4 . 4 . . 5 2 Kinetic 11 | . . . . . . . . . . . . . . . . . . . . . . . . . . 4 . . 5 2 Impact 3 | . . . . . . . . . . . . 3 . . . . . . . . . . . . . . . . . . Slashing 63 | . . . . . . . . 15 . 5 . 7 . 18 . 6 . . . . 12 . . . . . . . . . Piercing 9 | . . . . . . . . . . . . . . . . . . . . . . . 5 4 . . . . . . Sneak Attacks 31 | . . . . . . . . . 5 23 3 . . . . . . . . . . . . . . . . . . . Combat Hostiles 2 | . . . . . . . . . 1 1 . . . . . . . . . . . . . . . . . . . . Follow-up Attacks . | . . . . . . . . . . . . . . . . . . . . . . . . . . . . . . . Damage Inflicted 39214 | . 1131 608 109 765 . 189 2052 3047 478 1738 746 1496 459 1978 71 69 217 1185 521 433 1833 74 1357 459 1241 1467 22 . 1931 13538 Guns 12830 | . 644 62 109 542 . 43 1260 976 357 587 . 782 255 190 71 . . . . . 471 21 454 459 807 399 22 . 41 4278 Cannons 13402 | . . . . . . . 322 568 . . . . . 393 . 69 217 1185 521 433 227 53 412 . 434 841 . . 1287 6440 Explosions 7990 | . 487 546 . 223 . 146 470 898 121 770 746 237 204 . . . . . . . . . . . . . . . 322 2820 Melee 4992 | . . . . . . . . 605 . 381 . 477 . 1395 . . . . . . 1135 . 491 . . 227 . . 281 . Ramming . | . . . . . . . . . . . . . . . . . . . . . . . . . . . . . . . Kinetic 13880 | . 152 37 109 504 . 28 679 799 301 291 . 715 255 583 71 18 . 588 301 433 698 74 548 459 348 570 22 . 322 4975 Thermal 9642 | . 508 . . . . 15 849 582 56 128 . 44 . . . . . . . . . . . . 709 139 . . 1151 5461 Explosive 4636 | . . 546 . 223 . 146 470 898 121 770 746 193 204 . . . . . . . . . . . . . . . . 319 Electromagnetic 6572 | . 471 25 . 38 . . 54 163 . 168 . 67 . . . 51 217 597 220 . . . 318 . 184 758 . . 458 2783 Impact . | . . . . . . . . . . . . . . . . . . . . . . . . . . . . . . . Slashing 3993 | . . . . . . . . 605 . 381 . 477 . 1395 . . . . . . 1135 . . . . . . . . . Piercing 491 | . . . . . . . . . . . . . . . . . . . . . . . 491 . . . . . . . Highest Corruption 11 | . . . . . . . . . 2 2 . . . . . . . . . 5 11 . . 1 9 9 . . . 10 Average Corruption 5 | . . . . . . . . . 2 2 . . . . . . . . . 4 10 . . 1 2 9 . . . 4 Corruption Purged 14 | . . . . . . . . . . . . . . . . . . . . . . . . . . . . . . 14 Effects 277 | . . . . . . . . . 1 17 . . . . . . . . . 2 92 . . . 13 83 . . . 69 Message Errors 63 | . . . . . . . . . 1 4 . . . . . . . . . . 15 . . . 3 23 . . . 17 Matter Fused 55 | . . . . . . . . . . . . . . . . . . . . 2 13 . . . 3 25 . . . 12 Heat Flow Errors 33 | . . . . . . . . . . 9 . . . . . . . . . . 11 . . . 2 6 . . . 5 Energy Discharges 31 | . . . . . . . . . . 3 . . . . . . . . . . 12 . . . . 6 . . . 10 Parts Rejected 1 | . . . . . . . . . . . . . . . . . . . . . . . . . . . . . . 1 Data Loss (minor) 27 | . . . . . . . . . . 1 . . . . . . . . . . 11 . . . 2 6 . . . 7 Data Loss (major) 8 | . . . . . . . . . . . . . . . . . . . . . 6 . . . . 1 . . . 1 Misfires 12 | . . . . . . . . . . . . . . . . . . . . . 3 . . . . 6 . . . 3 Alerts 2 | . . . . . . . . . . . . . . . . . . . . . 2 . . . . . . . . . Misdirections 11 | . . . . . . . . . . . . . . . . . . . . . 11 . . . . . . . . . Targeting Errors 31 | . . . . . . . . . . . . . . . . . . . . . 8 . . . 2 10 . . . 11 Weapon Failures 3 | . . . . . . . . . . . . . . . . . . . . . . . . . 1 . . . . 2 Overload Shots 2 | . . . . . . . . . . . . . . . . . . . . . . . . 2 . . . . . . Overflow Damage 1112 | . 84 13 . . . 4 3 78 . 67 94 . 2 123 . . . 51 6 . 120 . 117 . . . . . 56 294 Projectiles 362 | . . . . . . . . . . . . . . . . . . 51 6 . . . 12 . . . . . 40 253 Explosions 319 | . 84 13 . . . 4 3 50 . 28 94 . 2 . . . . . . . . . . . . . . . . 41 Melee 431 | . . . . . . . . 28 . 39 . . . 123 . . . . . . 120 . 105 . . . . . 16 . Knockbacks 80 | . . . . . . . . . . . . . . 10 . . . 11 21 18 3 . 3 . . . . . . 14 Impact . | . . . . . . . . . . . . . . . . . . . . . . . . . . . . . . . Kinetic 73 | . . . . . . . . . . . . . . 10 . . . 9 18 18 2 . 3 . . . . . . 13 Secondary 7 | . . . . . . . . . . . . . . . . . . 2 3 . 1 . . . . . . . . 1 Self-Inflicted Damage 407 | . 168 . . . . 12 39 . . 82 . 50 . . . . . . . . . . . . . . . . 22 34 Shots 16 | . 3 . . . . 1 1 . . 2 . 1 . . . . . . . . . . . . . . . . 3 5 Rammed . | . . . . . . . . . . . . . . . . . . . . . . . . . . . . . . . Targets Rammed . | . . . . . . . . . . . . . . . . . . . . . . . . . . . . . . . Kicked . | . . . . . . . . . . . . . . . . . . . . . . . . . . . . . . . Crushed . | . . . . . . . . . . . . . . . . . . . . . . . . . . . . . . . Highest Temperature 295 | . 117 72 6 32 . 10 194 162 90 295 14 202 7 64 14 56 129 190 126 2 280 10 74 18 265 228 . . 8 249 Average Temperature 54 | . 45 40 4 11 . 9 51 44 43 68 9 46 3 13 8 15 45 48 53 1 101 7 37 9 120 64 . . 6 50 Received Heat Transfer 3889 | . 231 126 18 126 . 117 387 585 99 174 9 261 28 33 . 32 79 8 16 . 203 4 92 45 90 303 9 . 49 765 Effects 2 | . . . . . . . . . . . . . . . . . . . . . . . . . 2 . . . . . Energy Bleed 2 | . . . . . . . . . . . . . . . . . . . . . . . . . 2 . . . . . Siege Activations 2 | . . . . . . . . . . . . . . . . . . . . . . . . . . . . . . 2 Total Turns 62 | . . . . . . . . . . . . . . . . . . . . . . . . . . . . . . 62 Longest Duration 47 | . . . . . . . . . . . . . . . . . . . . . . . . . . . . . . 47 Robots Corrupted 19 | . . . . . . . . . . 1 . . . . . . . 2 1 . . . 2 . . 1 . . 3 9 Combat Hostiles 18 | . . . . . . . . . . 1 . . . . . . . 1 1 . . . 2 . . 1 . . 3 9 Parts Fried 62 | . 2 . . . . . 1 . . 2 . . . . . . . 3 . . . . 7 . 2 6 . . 8 31 Impact Corruptions . | . . . . . . . . . . . . . . . . . . . . . . . . . . . . . . . Robots Melted 8 | . . . . . . . . . 1 1 . . . . . . . . . . . . . . . . . . 1 5 Combat Hostiles 8 | . . . . . . . . . 1 1 . . . . . . . . . . . . . . . . . . 1 5 Parts Melted 43 | . 1 . . . . . 4 2 1 4 . . . 1 . . . 1 . . 3 . 2 . 1 . . . 4 19 Heat Transferred 9616 | . 600 . . . . 37 1702 814 148 310 . 50 . . . . . . . . . . . . 592 148 . . 999 4216 Parts Sabotaged 3 | . . . . . . . . . . . . . . . . . . . . . . . . . . . . . . 3 Parts Stolen . | . . . . . . . . . . . . . . . . . . . . . . . . . . . . . . . Parts Stripped . | . . . . . . . . . . . . . . . . . . . . . . . . . . . . . . . Power Chain Reactions 9 | . 3 . . . . . . . . . . 1 . . . . . . . . . . . . . . . . . 5 Missiles Intercepted . | . . . . . . . . . . . . . . . . . . . . . . . . . . . . . . . Alert | -11 -10 -10 -9 -9 -9 -8 -8 -8 -8 -8 -7 -7 -7 -7 -6 -6 -6 -6 -5 -5 -5 -4 -4 -3 -3 -3 -2 -1 -1 -1 ------- Run | Scr Mat Min Mat Min Exi Min Mat Gar Mat Gar Fac Gar Fac Gar Fac Low Low Zio Pro Fac Gar Fac Gar Res Qua Gar Res Acc Gar Acc Peak Influence 1544 | . 273 199 104 361 . 67 561 1007 505 999 524 924 512 769 477 . . . . 188 752 412 953 739 367 430 271 162 1279 1544 Initial 767 | . . 34 77 28 . . 26 295 490 227 524 265 485 296 403 . . . . 128 10 382 74 535 352 6 241 162 129 767 Average 581 | . 121 130 60 124 . 63 328 763 336 595 310 697 362 534 434 . . . . 117 513 316 697 618 92 294 253 162 916 928 Maximum Alert Level 4 | . 1 . . 1 . . 2 3 2 3 2 3 2 3 2 . . . . . 3 2 3 3 1 2 1 . 4 4 Low Security (%) 15 | 100 82 100 100 69 . 100 17 . . . 8 . . . . . . . . 100 15 18 15 . 85 18 . 100 10 1 Level 1 21 | . 17 . . 30 . . 45 8 57 14 88 15 83 26 . . . . . . 12 74 . . 14 71 100 . . 4 Level 2 26 | . . . . . . . 37 25 42 57 3 33 16 61 100 . . . . . 33 7 14 83 . 10 . . 13 16 Level 3 29 | . . . . . . . . 66 . 27 . 50 . 12 . . . . . . 38 . 69 16 . . . . 28 43 Level 4 8 | . . . . . . . . . . . . . . . . . . . . . . . . . . . . . 46 32 Level 5 . | . . . . . . . . . . . . . . . . . . . . . . . . . . . . . . . High Security . | . . . . . . . . . . . . . . . . . . . . . . . . . . . . . . . Max Security . | . . . . . . . . . . . . . . . . . . . . . . . . . . . . . . . Squads Dispatched 63 | . 2 . 1 . . . 4 . 3 . 3 . 1 . . . . . . 1 . 1 . 6 6 . . 1 . 34 Investigation 10 | . 2 . . . . . . . 1 . 2 . . . . . . . . . . 1 . 1 . . . 1 . 2 Extermination 11 | . . . . . . . . . . . . . . . . . . . . 1 . . . 1 1 . . . . 8 Reinforcement 22 | . . . 1 . . . 4 . 2 . 1 . . . . . . . . . . . . 1 2 . . . . 11 Assault 13 | . . . . . . . . . . . . . . . . . . . . . . . . . . . . . . 13 Garrison 7 | . . . . . . . . . . . . . 1 . . . . . . . . . . 3 3 . . . . . Intercept . | . . . . . . . . . . . . . . . . . . . . . . . . . . . . . . . Construction Impeded 8 | . . . . . . . . . 1 . . . . . . . . . . . . . . . . . . . . 7 Haulers Reinforced 5 | . . . . . . . . . . . . . . . . . . . . . . . . 1 . . . . . 4 Stealth | -11 -10 -10 -9 -9 -9 -8 -8 -8 -8 -8 -7 -7 -7 -7 -6 -6 -6 -6 -5 -5 -5 -4 -4 -3 -3 -3 -2 -1 -1 -1 --------- Run | Scr Mat Min Mat Min Exi Min Mat Gar Mat Gar Fac Gar Fac Gar Fac Low Low Zio Pro Fac Gar Fac Gar Res Qua Gar Res Acc Gar Acc Distress Signals 22 | . . . . . . . 1 . . . 1 . . . 1 . . . . . . 1 2 2 2 . . . . 12 Communications Jammed 19 | . . . . . . . . . . . . . . . . . . . . . . . . . . . . . . 19 Distress Signals 19 | . . . . . . . . . . . . . . . . . . . . . . . . . . . . . . 19 Times Spotted 808 | . 16 9 7 16 . 5 37 30 18 31 11 49 14 30 6 24 21 46 23 6 36 10 35 22 25 32 3 . 56 190 Peak Tracking Total 11 | . 4 2 4 4 . 3 6 7 5 6 4 9 4 4 4 11 11 5 4 2 7 3 7 4 5 9 2 . 6 11 Tactical Retreats 35 | . . . . 1 . 3 3 2 1 . . 8 . 1 . . 1 3 1 . 5 . 1 . . . . . 1 4 Traps | -11 -10 -10 -9 -9 -9 -8 -8 -8 -8 -8 -7 -7 -7 -7 -6 -6 -6 -6 -5 -5 -5 -4 -4 -3 -3 -3 -2 -1 -1 -1 ------- Run | Scr Mat Min Mat Min Exi Min Mat Gar Mat Gar Fac Gar Fac Gar Fac Low Low Zio Pro Fac Gar Fac Gar Res Qua Gar Res Acc Gar Acc Traps Triggered 61 | . 2 . . . . . 2 4 1 7 1 6 . 7 . . . . . . 7 . 6 1 . 5 . . 9 3 Indirectly 1 | . . . . . . . . . . . . . . . . . . . . . . . . . . . . . 1 . Trap Hack Attempts 7 | . . . . . . . . . . 7 . . . . . . . . . . . . . . . . . . . . Triggered . | . . . . . . . . . . . . . . . . . . . . . . . . . . . . . . . Disarmed . | . . . . . . . . . . . . . . . . . . . . . . . . . . . . . . . Reprogrammed 1 | . . . . . . . . . . 1 . . . . . . . . . . . . . . . . . . . . Reused 1 | . . . . . . . . . . . . . . . . . . . . . 1 . . . . . . . . . Traps Extracted . | . . . . . . . . . . . . . . . . . . . . . . . . . . . . . . . Installed 1 | . . . . . . . . . . . . . . . . . . . . . 1 . . . . . . . . . Triggered 4 | . . . . . . . . . . . . . . . . 3 . . . . 1 . . . . . . . . . Exploded 2 | . . . . . . . 2 . . . . . . . . . . . . . . . . . . . . . . . Machines | -11 -10 -10 -9 -9 -9 -8 -8 -8 -8 -8 -7 -7 -7 -7 -6 -6 -6 -6 -5 -5 -5 -4 -4 -3 -3 -3 -2 -1 -1 -1 ---------- Run | Scr Mat Min Mat Min Exi Min Mat Gar Mat Gar Fac Gar Fac Gar Fac Low Low Zio Pro Fac Gar Fac Gar Res Qua Gar Res Acc Gar Acc Machines Disabled 81 | . 3 . . . . . 2 4 2 5 1 6 2 4 . 4 2 2 . . 6 1 7 . 5 4 . . 6 15 Max in Single Turn 2 | . 2 . . . . . 1 1 1 2 1 2 2 1 . 1 1 1 . . 1 . 1 . 1 1 . . 1 2 Garrison Access 3 | . . . . . . . . . . . . . . . . . . . . . . . . . . . . . . 3 Garrison Relay 34 | . . . . . . . . 4 . 3 . 4 . 4 . . . . . . 5 . 5 . . 4 . . 5 . Phase Generator 1 | . . . . . . . . . . . . 1 . . . . . . . . . . . . . . . . . . Energy Cycler 1 | . . . . . . . . . . . . . . . . . . . . . . . . . . . . . . 1 Machines Sabotaged . | . . . . . . . . . . . . . . . . . . . . . . . . . . . . . . . Garrisons Compromised . | . . . . . . . . . . . . . . . . . . . . . . . . . . . . . . . Overloaded Fab Kills . | . . . . . . . . . . . . . . . . . . . . . . . . . . . . . . . Fab Network Shutdowns . | . . . . . . . . . . . . . . . . . . . . . . . . . . . . . . . Hacking | -11 -10 -10 -9 -9 -9 -8 -8 -8 -8 -8 -7 -7 -7 -7 -6 -6 -6 -6 -5 -5 -5 -4 -4 -3 -3 -3 -2 -1 -1 -1 --------- Run | Scr Mat Min Mat Min Exi Min Mat Gar Mat Gar Fac Gar Fac Gar Fac Low Low Zio Pro Fac Gar Fac Gar Res Qua Gar Res Acc Gar Acc Machines Accessed 44 | . 5 . 4 1 1 . 3 . 4 . 5 . 2 . 2 1 . . . 1 . 3 . 3 7 . 1 1 . . Terminals 31 | . 5 . 4 1 . . 2 . 3 . 1 . 1 . 2 1 . . . . . 2 . 3 5 . 1 . . . Fabricators 3 | . . . . . . . . . . . 3 . . . . . . . . . . . . . . . . . . . Repair Stations . | . . . . . . . . . . . . . . . . . . . . . . . . . . . . . . . Recycling Units . | . . . . . . . . . . . . . . . . . . . . . . . . . . . . . . . Scanalyzers 1 | . . . . . . . . . . . . . . . . . . . . . . . . . 1 . . . . . Garrison Access 8 | . . . . . . . 1 . 1 . 1 . 1 . . . . . . 1 . 1 . . 1 . . 1 . . Total Hacks 113 | . 17 . 12 3 1 . 6 . 12 . 9 . 5 . 3 3 . . . 1 . 5 . 4 26 . 3 3 . . Successful 62 | . 8 . 9 1 1 . 1 . 6 . 4 . 2 . 2 3 . . . 1 . 2 . 2 19 . . 1 . . Failed 51 | . 9 . 3 2 . . 5 . 6 . 5 . 3 . 1 . . . . . . 3 . 2 7 . 3 2 . . Catastrophic 11 | . 1 . 2 1 . . 1 . 1 . 2 . . . 1 . . . . . . . . 1 . . . 1 . . Database Lockouts . | . . . . . . . . . . . . . . . . . . . . . . . . . . . . . . . Manual 27 | . 1 . 1 3 . . . . 7 . 1 . 2 . 1 . . . . . . 4 . . 5 . . 2 . . Terminals 89 | . 17 . 12 3 . . 5 . 8 . 3 . 2 . 3 3 . . . . . 2 . 4 24 . 3 . . . Fabricators 4 | . . . . . . . . . . . 4 . . . . . . . . . . . . . . . . . . . Repair Stations . | . . . . . . . . . . . . . . . . . . . . . . . . . . . . . . . Recycling Units . | . . . . . . . . . . . . . . . . . . . . . . . . . . . . . . . Scanalyzers 1 | . . . . . . . . . . . . . . . . . . . . . . . . . 1 . . . . . Garrison Access 18 | . . . . . . . 1 . 4 . 2 . 3 . . . . . . 1 . 3 . . 1 . . 3 . . Terminal Hacks 45 | . 8 . 9 1 1 . . . 3 . 1 . 1 . 2 3 . . . . . . . 2 14 . . . . . Record 10 | . . . . . 1 . . . . . . . . . . 3 . . . . . . . . 6 . . . . . Robot Analysis 1 | . . . . . . . . . . . . . . . . . . . . . . . . . 1 . . . . . Prototype ID Bank 5 | . 2 . 1 . . . . . . . . . . . . . . . . . . . . . 2 . . . . . Open Door 1 | . . . . . . . . . . . . . . . . . . . . . . . . 1 . . . . . . Branch Access Points 4 | . 1 . 1 . . . . . . . . . . . 1 . . . . . . . . 1 . . . . . . Emergency Access Points 1 | . . . . . . . . . . . . . . . . . . . . . . . . . 1 . . . . . Terminal Index 1 | . . . . . . . . . 1 . . . . . . . . . . . . . . . . . . . . . Alert Level 2 | . . . 1 . . . . . . . . . . . . . . . . . . . . . 1 . . . . . Unreport Threat 3 | . . . 1 1 . . . . . . . . 1 . . . . . . . . . . . . . . . . . Locate Traps 4 | . 2 . . . . . . . . . . . . . 1 . . . . . . . . . 1 . . . . . Dispatch Records 1 | . . . . . . . . . 1 . . . . . . . . . . . . . . . . . . . . . Maintenance Status 3 | . 1 . 1 . . . . . . . . . . . . . . . . . . . . . 1 . . . . . Garrison Status 1 | . . . . . . . . . 1 . . . . . . . . . . . . . . . . . . . . . Recall Reinforcements 2 | . . . 1 . . . . . . . . . . . . . . . . . . . . . 1 . . . . . Registered Components 2 | . . . 1 . . . . . . . 1 . . . . . . . . . . . . . . . . . . . Zone Layout 4 | . 2 . 2 . . . . . . . . . . . . . . . . . . . . . . . . . . . Fabricator Hacks 1 | . . . . . . . . . . . 1 . . . . . . . . . . . . . . . . . . . Build 1 | . . . . . . . . . . . 1 . . . . . . . . . . . . . . . . . . . Repair Station Hacks . | . . . . . . . . . . . . . . . . . . . . . . . . . . . . . . . Recycling Unit Hacks . | . . . . . . . . . . . . . . . . . . . . . . . . . . . . . . . Scanalyzer . | . . . . . . . . . . . . . . . . . . . . . . . . . . . . . . . Garrison Access Hacks 9 | . . . . . . . 1 . 2 . 1 . 1 . . . . . . 1 . 1 . . 1 . . 1 . . Unlock Access 8 | . . . . . . . 1 . 1 . 1 . 1 . . . . . . 1 . 1 . . 1 . . 1 . . Coupler Status 1 | . . . . . . . . . 1 . . . . . . . . . . . . . . . . . . . . . Unauthorized Hacks 7 | . . . . . . . . . 1 . 1 . . . . . . . . . . 1 . . 4 . . . . . Terminals 3 | . . . . . . . . . . . . . . . . . . . . . . . . . 3 . . . . . Track 1 | . . . . . . . . . . . . . . . . . . . . . . . . . 1 . . . . . Assimilate 1 | . . . . . . . . . . . . . . . . . . . . . . . . . 1 . . . . . Operators 1 | . . . . . . . . . . . . . . . . . . . . . . . . . 1 . . . . . Fabricators . | . . . . . . . . . . . . . . . . . . . . . . . . . . . . . . . Repair Stations . | . . . . . . . . . . . . . . . . . . . . . . . . . . . . . . . Recycling Units . | . . . . . . . . . . . . . . . . . . . . . . . . . . . . . . . Scanalyzers 1 | . . . . . . . . . . . . . . . . . . . . . . . . . 1 . . . . . Researchers 1 | . . . . . . . . . . . . . . . . . . . . . . . . . 1 . . . . . Garrison Access 3 | . . . . . . . . . 1 . 1 . . . . . . . . . . 1 . . . . . . . . Restock 1 | . . . . . . . . . 1 . . . . . . . . . . . . . . . . . . . . . Eject 2 | . . . . . . . . . . . 1 . . . . . . . . . . 1 . . . . . . . . Data Cores Recovered . | . . . . . . . . . . . . . . . . . . . . . . . . . . . . . . . Used . | . . . . . . . . . . . . . . . . . . . . . . . . . . . . . . . Hacking Detections 38 | . 5 . 4 1 . . 2 . 4 . 4 . 2 . 2 1 . . . 1 . 3 . 2 5 . 1 1 . . Full Trace Events 4 | . 1 . . . . . . . . . . . . . . 1 . . . . . . . 1 . . . 1 . . Feedback Events . | . . . . . . . . . . . . . . . . . . . . . . . . . . . . . . . Feedback Blocked . | . . . . . . . . . . . . . . . . . . . . . . . . . . . . . . . Robot Schematics Acquired . | . . . . . . . . . . . . . . . . . . . . . . . . . . . . . . . Robots Built 1 | . . . . . . . . . . . 1 . . . . . . . . . . . . . . . . . . . Matter 219 | . . . . . . . . . . . 219 . . . . . . . . . . . . . . . . . . . Time 116 | . . . . . . . . . . . 116 . . . . . . . . . . . . . . . . . . . Total Robot Build Rating 3 | . . . . . . . . . . . 3 . . . . . . . . . . . . . . . . . . . Part Schematics Acquired . | . . . . . . . . . . . . . . . . . . . . . . . . . . . . . . . Parts Built . | . . . . . . . . . . . . . . . . . . . . . . . . . . . . . . . Matter . | . . . . . . . . . . . . . . . . . . . . . . . . . . . . . . . Time . | . . . . . . . . . . . . . . . . . . . . . . . . . . . . . . . Total Part Build Rating . | . . . . . . . . . . . . . . . . . . . . . . . . . . . . . . . Parts Repaired . | . . . . . . . . . . . . . . . . . . . . . . . . . . . . . . . Time . | . . . . . . . . . . . . . . . . . . . . . . . . . . . . . . . Parts Recycled . | . . . . . . . . . . . . . . . . . . . . . . . . . . . . . . . Recycled Matter . | . . . . . . . . . . . . . . . . . . . . . . . . . . . . . . . Retrieved Matter . | . . . . . . . . . . . . . . . . . . . . . . . . . . . . . . . Retrieved Components . | . . . . . . . . . . . . . . . . . . . . . . . . . . . . . . . Parts Scanalyzed . | . . . . . . . . . . . . . . . . . . . . . . . . . . . . . . . Part Schematics Acquired . | . . . . . . . . . . . . . . . . . . . . . . . . . . . . . . . Parts Damaged . | . . . . . . . . . . . . . . . . . . . . . . . . . . . . . . . Bothacking | -11 -10 -10 -9 -9 -9 -8 -8 -8 -8 -8 -7 -7 -7 -7 -6 -6 -6 -6 -5 -5 -5 -4 -4 -3 -3 -3 -2 -1 -1 -1 ------------ Run | Scr Mat Min Mat Min Exi Min Mat Gar Mat Gar Fac Gar Fac Gar Fac Low Low Zio Pro Fac Gar Fac Gar Res Qua Gar Res Acc Gar Acc Used RIF Installer 8 | . . . . . . . . 1 . 1 . 1 . 1 . . . . . . 1 . 1 . . 1 . . 1 . Coupler Efficiency 1 | . . . . . . . . . . . . . . . . . . . . . 1 . . . . . . . . . Hotswap 1 | . . . . . . . . . . 1 . . . . . . . . . . . . . . . . . . . . Command Fork 1 | . . . . . . . . . . . . 1 . . . . . . . . . . . . . . . . . . Threat Obfuscator 1 | . . . . . . . . . . . . . . . . . . . . . . . . . . 1 . . . . Structural Interface 1 | . . . . . . . . . . . . . . 1 . . . . . . . . . . . . . . . . Program Shield 1 | . . . . . . . . . . . . . . . . . . . . . . . . . . . . . 1 . Autoassimilate 1 | . . . . . . . . . . . . . . . . . . . . . . . 1 . . . . . . . Robots Hacked 253 | . . . . . . . . . 8 6 3 15 10 15 4 7 6 . 4 3 13 9 15 10 19 12 3 . 22 69 Non-combat 47 | . . . . . . . . . 2 . 2 1 6 . 1 . . . . 3 . 6 . 2 5 . 1 . . 18 Combat 206 | . . . . . . . . . 6 6 1 14 4 15 3 7 6 . 4 . 13 3 15 8 14 12 2 . 22 51 Autoassimilated 17 | . . . . . . . . . . . . . . . . . . . . . . . . 2 1 2 . . 3 9 Robot Hacks Applied 267 | . . . . . . . . . 11 7 5 15 11 15 4 7 7 . 4 3 14 13 15 8 21 11 3 . 20 73 parse_system 4 | . . . . . . . . . . . . 2 . . . . . . . . . . . . 1 . . . 1 . no_distress 6 | . . . . . . . . . 1 . . . . . . . . . . . . . . 1 . . . . . 4 start_evac 1 | . . . . . . . . . . . . . . . . . . . . . . . . . 1 . . . . . ignore_repairs 3 | . . . . . . . . . . . . . . . 1 . . . . . . . . . . . . . . 2 map_walls 6 | . . . . . . . . . . . . . 1 . . . . . . 1 . 2 . . . . . . . 2 map_earth 1 | . . . . . . . . . . . . . 1 . . . . . . . . . . . . . . . . . drop_inventory 8 | . . . . . . . . . . . 1 . 2 . . . . . . 1 . . . 1 1 . . . . 2 recall_reinforcements 1 | . . . . . . . . . . . . . . . . . . . . . . . . . . . . . . 1 ignore_parts 3 | . . . . . . . . . . . . . . . . . . . . . . 2 . . . . . . . 1 purge_threat 17 | . . . . . . . . . 2 . 2 . . . . . . . . . . 2 . . 2 . . . . 9 block_reporting 2 | . . . . . . . . . . . . . . . . . . . . . . 1 . . . . . . . 1 map_route 5 | . . . . . . . . . . . . . 1 . . . . . . . . 1 . . 1 . . . . 2 mark_security 1 | . . . . . . . . . . . . . . . . . . . . . . . . . . . 1 . . . disable_scanner 2 | . . . . . . . . . . . . . . . . . . . . . . . . . 2 . . . . . locate_prototypes 1 | . . . . . . . . . . . . . . . . . . . . . . . . . 1 . . . . . report_analyses 1 | . . . . . . . . . . . . . . . . . . . . . . . . . 1 . . . . . find_shortcuts 1 | . . . . . . . . . 1 . . . . . . . . . . . . . . . . . . . . . find_garrison 4 | . . . . . . . . . 1 . 1 . 1 . . . . . . . . 1 . . . . . . . . scatter_targeting 1 | . . . . . . . . . . . . . . . . . . . . . . . . . . . . . . 1 mark_system 2 | . . . . . . . . . . . . . . . . . . . . . . 1 . . . . . . . 1 broadcast_data 3 | . . . . . . . . . . . . . . . . . 1 . . . . . . 1 . . . . . 1 disrupt_area 1 | . . . . . . . . . . . . . . . . . . . . . . . . . . . . . 1 . spike_heat 30 | . . . . . . . . . 3 3 . . . . . . . . . . 3 . 2 . . 2 . . 3 14 overload_power 2 | . . . . . . . . . . . . . . . . . . . . . . 1 . . . . . . . 1 amplify_resonance 9 | . . . . . . . . . . . . . . 1 1 1 4 . 1 . 1 . . . . . . . . . wipe_record 3 | . . . . . . . . . . . . 1 . . . . . . . . 1 . . . . . . . 1 . reboot_system 3 | . . . . . . . . . . . . . . . . . 1 . . . . . 1 . . . . . 1 . go_dormant 2 | . . . . . . . . . . . . . . 1 . . . . . . . . . . . . . . . 1 overwrite_iff 31 | . . . . . . . . . 1 . 1 3 2 4 . 1 . . 2 . 2 . 2 . 1 3 . . 2 7 streamctrl_low 1 | . . . . . . . . . . . . . . . . . . . . . . . . . . . . . . 1 streamctrl_high 21 | . . . . . . . . . . 3 . 3 1 3 . . . . . . 2 . 2 1 2 3 . . . 1 formatsys_low 6 | . . . . . . . . . . . . . 1 . . . . . . 1 . . . . 1 . . . . 3 formatsys_high 85 | . . . . . . . . . 2 1 . 6 1 6 2 5 1 . 1 . 5 2 8 4 7 3 2 . 11 18 Relay Couplers Released 152 | . . . . . . . . 14 4 13 4 17 . 13 . . . . . . 19 4 21 . . 16 . . 22 5 Ejected 8 | . . . . . . . . . . . 4 . . . . . . . . . . 4 . . . . . . . . Machine Destruction 140 | . . . . . . . . 14 . 13 . 17 . 13 . . . . . . 19 . 21 . . 16 . . 22 5 Programmers 4 | . . . . . . . . . 4 . . . . . . . . . . . . . . . . . . . . . Attached 50 | . . . . . . . . . 4 2 3 3 2 2 . . 1 1 . 1 8 2 6 . 3 3 . . 3 6 Robots Rewired 19 | . . . . . . . . . . 9 . . . . . . . . . 1 3 . 6 . . . . . . . Allies Hacked 7 | . . . . . . . . . . . . . . . . . . . . . . . 1 . 5 . . . . 1 Hacks Repelled . | . . . . . . . . . . . . . . . . . . . . . . . . . . . . . . . Allies | -11 -10 -10 -9 -9 -9 -8 -8 -8 -8 -8 -7 -7 -7 -7 -6 -6 -6 -6 -5 -5 -5 -4 -4 -3 -3 -3 -2 -1 -1 -1 -------- Run | Scr Mat Min Mat Min Exi Min Mat Gar Mat Gar Fac Gar Fac Gar Fac Low Low Zio Pro Fac Gar Fac Gar Res Qua Gar Res Acc Gar Acc Total Allies 202 | . . . . 1 . . . . 3 13 5 12 6 13 2 8 2 . 3 2 12 2 18 7 16 12 2 . 19 44 Largest Group 16 | . . . . 1 . . . . 1 9 10 4 7 11 11 15 16 14 8 2 3 5 11 11 8 5 6 6 12 6 Highest-Rated Group 768 | . . . . 31 . . . . 21 159 224 127 170 278 314 450 486 428 273 40 131 221 536 557 285 219 323 323 768 452 Highest-Rated Ally 222 | . . . . 31 . . . . 21 21 31 37 37 37 37 49 44 44 49 29 81 49 56 64 64 115 64 64 222 222 Total Orders 150 | . . . . . . . . . . 9 . 7 . 21 . 2 2 7 . . 10 . 33 . . 13 . . 20 26 STAY 57 | . . . . . . . . . . 6 . 4 . 8 . . . 5 . . 5 . 12 . . 6 . . 11 . ROAM 3 | . . . . . . . . . . . . . . . . . . . . . . . 3 . . . . . . . FOLLOW 58 | . . . . . . . . . . 3 . 3 . 7 . . 1 2 . . 5 . 18 . . 7 . . 9 3 AID 14 | . . . . . . . . . . . . . . 6 . 2 1 . . . . . . . . . . . . 5 EXPLORE 13 | . . . . . . . . . . . . . . . . . . . . . . . . . . . . . . 13 RETURN 5 | . . . . . . . . . . . . . . . . . . . . . . . . . . . . . . 5 Ally Attacks 1439 | . . . . 4 . . . . 20 42 28 28 23 51 7 67 59 168 39 2 64 32 91 81 56 70 4 . 205 298 Total Damage 48766 | . . . . 64 . . . . 314 897 309 613 581 963 158 1595 1873 4806 1032 22 2102 1117 2296 3182 1014 2213 19 . 8069 15527 Kills 327 | . . . . 2 . . . . 4 8 4 5 7 10 1 16 13 54 11 . 17 6 17 18 6 12 . . 33 83 Allies Corrupted 8 | . . . . . . . . . . . . . . . . . . . . . . . . 2 . . . . . 6 Allies Melted 1 | . . . . . . . . . . . . . . . . . . . . . . . . . . 1 . . . . Intel | -11 -10 -10 -9 -9 -9 -8 -8 -8 -8 -8 -7 -7 -7 -7 -6 -6 -6 -6 -5 -5 -5 -4 -4 -3 -3 -3 -2 -1 -1 -1 ------- Run | Scr Mat Min Mat Min Exi Min Mat Gar Mat Gar Fac Gar Fac Gar Fac Low Low Zio Pro Fac Gar Fac Gar Res Qua Gar Res Acc Gar Acc Robot Analysis Total 1 | . . . . . . . . . . . . . . . . . . . . . . . . . 1 . . . . . Derelict Logs Recovered 6 | . . 1 . . . . . . . . . . . . . 1 1 2 1 . . . . . . . . . . . Drone Launches 17 | . . . . . . . . . . . . . . . . . . . . . . . . . . . . . . 17 Drone Recoveries 9 | . . . . . . . . . . . . . . . . . . . . . . . . . . . . . . 9 Exploration | -11 -10 -10 -9 -9 -9 -8 -8 -8 -8 -8 -7 -7 -7 -7 -6 -6 -6 -6 -5 -5 -5 -4 -4 -3 -3 -3 -2 -1 -1 -1 ------------- Run | Scr Mat Min Mat Min Exi Min Mat Gar Mat Gar Fac Gar Fac Gar Fac Low Low Zio Pro Fac Gar Fac Gar Res Qua Gar Res Acc Gar Acc Turns Passed 33579 | 58 501 354 180 500 405 217 879 2281 482 2125 662 2854 469 2173 253 887 909 1614 566 462 1957 409 2060 481 862 2262 267 25 2549 3876 Spaces Moved 18852 | 44 344 333 165 329 381 181 458 1005 243 940 429 1417 283 1155 172 574 590 1083 358 317 1128 278 1209 281 504 1089 203 16 1487 1856 Core 1 | 1 . . . . . . . . . . . . . . . . . . . . . . . . . . . . . . Treads 1102 | . . . . . . . . 609 . 333 . 2 . . . . . . . . . . . . . . . . . 158 Legs 522 | . . . . . . . . 15 . . . . . . . . . . . . . . . . . 507 . . . . Wheels 17227 | 43 344 333 165 329 381 181 458 381 243 607 429 1415 283 1155 172 574 590 1083 358 317 1128 278 1209 281 504 582 203 16 1487 1698 Hover . | . . . . . . . . . . . . . . . . . . . . . . . . . . . . . . . Flight . | . . . . . . . . . . . . . . . . . . . . . . . . . . . . . . . Fastest Speed 50 | 50 90 90 90 90 100 110 100 120 130 130 130 130 130 130 123 123 123 123 120 123 116 120 120 120 116 110 120 120 120 120 Average Speed 132 | 90 92 90 90 99 105 110 114 177 130 170 130 163 130 139 126 123 123 123 121 123 121 126 124 122 128 146 120 120 126 132 Slowest Speed 390 | 100 100 90 90 100 110 110 120 390 130 280 130 280 140 140 140 123 123 123 140 123 140 130 130 140 160 210 120 120 130 190 Overloaded Moves . | . . . . . . . . . . . . . . . . . . . . . . . . . . . . . . . Propulsion Burnouts . | . . . . . . . . . . . . . . . . . . . . . . . . . . . . . . . Robots Hopped . | . . . . . . . . . . . . . . . . . . . . . . . . . . . . . . . Cave-ins Triggered . | . . . . . . . . . . . . . . . . . . . . . . . . . . . . . . . Exploration Rate (%) 54 | 4 72 82 16 76 58 42 52 76 33 82 12 96 12 95 5 73 80 87 58 14 95 9 99 13 60 98 8 1 97 69 Regions Visited 30 Branch Regions 9 Pre-discovered Areas 3 | . . 1 . 1 1 . . . . . . . . . . . . . . . . . . . . . . . . . Known Exits Taken 13 | . 1 . 1 . . . 1 . 1 . 1 . 1 . 1 . . . 1 1 . 1 . 1 1 . . 1 . . Unknown Exits Taken 9 | 1 . 1 . 1 1 1 . . . . . . . . . 1 1 1 . . . . . . . . 1 . . . Scrap Searched 14 | . . 3 . 2 . 1 . . . . . . . . . 1 . 5 2 . . . . . . . . . . . Spaces Dug 72 | . 7 . . . . . 7 5 . 13 5 2 . . . 6 . . . . . . . 5 . 2 . . 6 14 Terrain Destroyed 562 | . 31 53 . 33 . 12 55 32 41 43 28 89 13 . . 6 . . . . . . 2 5 3 5 . . 18 93 Melee 11 | . . . . . . . . . . . . 2 . . . 6 . . . . . . . 3 . . . . . . Projectile 100 | . . . . . . . 4 . 1 . . 1 . . . . . . . . . . 2 2 3 5 . . 18 64 AOE 451 | . 31 53 . 33 . 12 51 32 40 43 28 86 13 . . . . . . . . . . . . . . . . 29 Terrain Rammed . | . . . . . . . . . . . . . . . . . . . . . . . . . . . . . . . Walls Destroyed . | . . . . . . . . . . . . . . . . . . . . . . . . . . . . . . . Machines Disabled . | . . . . . . . . . . . . . . . . . . . . . . . . . . . . . . . Actions | -11 -10 -10 -9 -9 -9 -8 -8 -8 -8 -8 -7 -7 -7 -7 -6 -6 -6 -6 -5 -5 -5 -4 -4 -3 -3 -3 -2 -1 -1 -1 --------- Run | Scr Mat Min Mat Min Exi Min Mat Gar Mat Gar Fac Gar Fac Gar Fac Low Low Zio Pro Fac Gar Fac Gar Res Qua Gar Res Acc Gar Acc Total 25681 | 59 444 367 189 437 388 193 688 1340 366 1369 527 1844 352 1634 200 731 755 1288 447 369 1648 334 1724 385 706 1691 226 21 2073 2886 Wait 3800 | 8 24 6 1 55 . 2 96 157 67 254 56 263 33 325 6 125 141 112 39 17 320 20 360 48 62 407 4 5 335 452 Move 18824 | 43 343 332 164 328 380 180 457 1004 242 939 428 1416 283 1154 171 573 589 1082 357 317 1127 277 1208 280 503 1088 202 16 1486 1855 Hop . | . . . . . . . . . . . . . . . . . . . . . . . . . . . . . . . Pick Up 277 | 3 9 2 6 6 4 2 21 20 5 10 8 15 1 12 2 4 1 5 1 3 26 5 17 3 10 21 3 . 17 35 Fast Attach 196 | 5 10 4 2 2 . 2 10 10 1 4 3 4 . 2 4 . . 1 1 2 14 4 6 7 20 15 4 . 21 38 Attach 157 | . 4 2 1 5 . 3 8 12 3 10 5 9 2 1 1 . . . 2 1 10 3 5 1 7 13 3 . 8 38 Detach 37 | . . 1 1 . . 1 . 2 1 3 2 1 . . 1 . . . . 1 1 . . . 4 7 1 . 2 8 Swap 143 | . 2 2 2 3 1 . 13 13 6 9 7 8 2 7 . 5 1 1 . . 6 1 9 7 4 10 . . 8 16 Drop 280 | . 3 2 6 4 3 . 20 16 1 7 8 10 1 9 3 . 1 6 1 3 29 8 19 8 18 30 5 . 30 29 Fire 1517 | . 49 16 6 34 . 3 63 79 19 57 7 74 29 56 11 16 22 81 46 24 59 16 67 25 74 67 4 . 101 412 Melee 136 | . . . . . . . . 15 19 33 3 10 . 18 . 6 . . . . 12 . 5 4 . 4 . . 5 2 Ram . | . . . . . . . . . . . . . . . . . . . . . . . . . . . . . . . Kick . | . . . . . . . . . . . . . . . . . . . . . . . . . . . . . . . Crush . | . . . . . . . . . . . . . . . . . . . . . . . . . . . . . . . Escape Stasis 275 | . . . . . . . . 12 . 35 . 32 . 48 . . . . . . 40 . 24 . . 28 . . 56 . Rewire 31 | . . . . . . . . . 2 1 . 2 1 2 1 2 . . . 1 3 . 4 2 4 1 . . 4 1 Trap 8 | . . . . . . . . . . 7 . . . . . . . . . . 1 . . . . . . . . . Miscellaneous . | . . . . . . . . . . . . . . . . . . . . . . . . . . . . . . . Route ------- -11/Scrapyard -10/Materials (discovered 2 exits: *Min x2) -10/Mines -9/Materials (discovered 2 exits: *Min x2) -9/Mines (discovered 3 exits: *Mat x2 / *Exi) -9/Exiles -8/Mines -8/Materials (discovered 4 exits: *Fac x2 / [*Sto] / Gar) -8/Garrison (discovered 3 exits: *Mat x3) -8/Materials (discovered 2 exits: *Fac / Gar) -8/Garrison (discovered 3 exits: *Fac x3) -7/Factory (discovered 2 exits: [*Low] / Gar) -7/Garrison (discovered 3 exits: *Fac x3) -7/Factory (discovered 2 exits: *Fac / Gar) -7/Garrison (discovered 3 exits: *Fac x3) -6/Factory (discovered 2 exits: *Low x2) -6/Lower Caves -6/Lower Caves (discovered 2 exits: *Fac / [*Zio]) -6/Zion -5/Proximity Caves -5/Factory (discovered 3 exits: *Fac / Upp / Gar) -5/Garrison (discovered 3 exits: *Fac x3) -4/Factory -4/Garrison (discovered 3 exits: *Res x3) -3/Research (discovered 3 exits: Arm / *Qua x2) -3/Quarantine (discovered 2 exits: *Res / Gar) -3/Garrison (discovered 3 exits: *Res x3) -2/Research -1/Access -1/Garrison (discovered 3 exits: [*Acc x3]) -1/Access To Epsilon Eridani History --------- Turn | Location | Event 27 | -11/Scrapyard | Discovered new exit (range 15) 59 | -11/Scrapyard | Entered Materials 275 | -10/Materials | Discovered new exit (range 15) 281 | -10/Materials | Lost 5 parts (1p1n3w) 284 | -10/Materials | Identified exit to Mines 400 | -10/Materials | Lost 4 parts (2n1u1w) 560 | -10/Materials | Entered Mines 563 | -10/Mines | Met a Derelict bent on vengeance 569 | -10/Mines | Core integrity fell below 50% 591 | -10/Mines | Learned location of Zion (-6) 609 | -10/Mines | Lost 3 parts (3w) 682 | -10/Mines | Build established: Mutant 903 | -10/Mines | Discovered new exit (range 7) 914 | -10/Mines | Entered Materials 914 | -9/Materials | Evolved 2 slots: Utility x2 1051 | -9/Materials | Identified exit to Mines 1094 | -9/Materials | Entered Mines 1165 | -9/Mines | Lost 5 parts (1p2n1u1w) 1233 | -9/Mines | Learned location of Storage (-8) 1278 | -9/Mines | Escorted by a lone wolf Derelict 1378 | -9/Mines | Discovered new exit (range 5) 1456 | -9/Mines | Deemed a non-threat by the Exiles lab entrance 1506 | -9/Mines | Found a damaged Exp. Sensor Array with a note attached 1515 | -9/Mines | Discovered new exit (range 6) 1590 | -9/Mines | Discovered new exit (range 5) 1594 | -9/Mines | Entered Exiles 1620 | -9/Exiles | Met 8R-AWN 1636 | -9/Exiles | Met EX-HEX 1710 | -9/Exiles | Met EX-DEC 1712 | -9/Exiles | Build established: Scavenger-Mutant 1984 | -9/Exiles | Discovered new exit (range 14) 1999 | -9/Exiles | Entered Mines 2040 | -8/Mines | Lost 4 parts (2u2w) 2209 | -8/Mines | Discovered new exit (range 5) 2216 | -8/Mines | Entered Materials 2216 | -8/Materials | Evolved 2 slots: Utility x1, Weapon x1 2287 | -8/Materials | Lost 3 parts (1n1u1w) 2370 | -8/Materials | Discovered new exit (range 15) 2515 | -8/Materials | Discovered new exit (range 13) 2761 | -8/Materials | Discovered new exit (range 16) 3089 | -8/Materials | Identified exit to Garrison 3095 | -8/Materials | Entered Garrison 3101 | -8/Garrison | Installed Relay Interface Framework 3140 | -8/Garrison | Triggered checkpoint 3210 | -8/Garrison | Garrison Relay disabled 3277 | -8/Garrison | Triggered checkpoint 3311 | -8/Garrison | Triggered checkpoint 3319 | -8/Garrison | Triggered checkpoint 3426 | -8/Garrison | Triggered checkpoint 3427 | -8/Garrison | Lost 8 parts (1n2u5w) 3497 | -8/Garrison | Build established: Hauler-Mutant 3640 | -8/Garrison | Discovered new exit (range 10) 3726 | -8/Garrison | Triggered checkpoint 3874 | -8/Garrison | Garrison Relay disabled 4040 | -8/Garrison | Build established: Scavenger-Mutant 4073 | -8/Garrison | Discovered new exit (range 9) 4135 | -8/Garrison | Triggered checkpoint 4296 | -8/Garrison | Found Powered Armor 4300 | -8/Garrison | Found Powered Armor 4303 | -8/Garrison | Found Powered Armor 4306 | -8/Garrison | Found Powered Armor 4495 | -8/Garrison | Discovered new exit (range 12) 4630 | -8/Garrison | Triggered checkpoint 4799 | -8/Garrison | Garrison Relay disabled 4902 | -8/Garrison | Build established: Scavenger-Tank 5335 | -8/Garrison | Garrison Relay disabled 5376 | -8/Garrison | Entered Materials 5412 | -8/Materials | Build established: Bothacker-Mutant 5480 | -8/Materials | Core integrity fell below 50% 5563 | -8/Materials | Discovered new exit (range 13) 5797 | -8/Materials | Identified exit to Garrison 5858 | -8/Materials | Entered Garrison 6006 | -8/Garrison | Triggered checkpoint 6119 | -8/Garrison | Triggered checkpoint 6159 | -8/Garrison | Triggered checkpoint 6292 | -8/Garrison | Discovered new exit (range 14) 6361 | -8/Garrison | Triggered checkpoint 6419 | -8/Garrison | Garrison Relay disabled 6727 | -8/Garrison | Discovered new exit (range 15) 6786 | -8/Garrison | Expanded RIF knowledge: Hotswap 6870 | -8/Garrison | Triggered checkpoint 6913 | -8/Garrison | Garrison Relay disabled 6938 | -8/Garrison | Build established: Bothacker-Tank 7270 | -8/Garrison | Triggered checkpoint 7296 | -8/Garrison | Triggered checkpoint 7323 | -8/Garrison | Build established: Bothacker-Mutant 7390 | -8/Garrison | Triggered checkpoint 7828 | -8/Garrison | Triggered checkpoint 7840 | -8/Garrison | Triggered checkpoint 7847 | -8/Garrison | Discovered new exit (range 15) 7983 | -8/Garrison | Entered Factory 7983 | -7/Factory | Accompanied by 9 allies 7983 | -7/Factory | Evolved 2 slots: Utility x2 8070 | -7/Factory | Allied Derelicts emerged from ambush trap array 8345 | -7/Factory | Discovered new exit (range 7) 8571 | -7/Factory | Identified exit to Garrison 8612 | -7/Factory | Fabricated O-24 Administrator? 8645 | -7/Factory | Entered Garrison 8645 | -7/Garrison | Accompanied by 2 allies 8692 | -7/Garrison | Triggered checkpoint 8744 | -7/Garrison | Garrison Relay disabled 8848 | -7/Garrison | Triggered checkpoint 8848 | -7/Garrison | Triggered checkpoint 8848 | -7/Garrison | Triggered checkpoint 9278 | -7/Garrison | Triggered checkpoint 9331 | -7/Garrison | Garrison Relay disabled 9381 | -7/Garrison | Discovered new exit (range 10) 9555 | -7/Garrison | Discovered new exit (range 15) 9591 | -7/Garrison | Expanded RIF knowledge: Command Fork 9660 | -7/Garrison | Triggered checkpoint 9703 | -7/Garrison | Garrison Relay disabled 9980 | -7/Garrison | Discovered new exit (range 14) 10042 | -7/Garrison | Triggered checkpoint 10080 | -7/Garrison | Garrison Relay disabled 10319 | -7/Garrison | Phase Generator disabled 11313 | -7/Garrison | Spotted B-75 Beast 11499 | -7/Garrison | Entered Factory 11499 | -7/Factory | Accompanied by 4 allies 11644 | -7/Factory | Discovered new exit (range 11) 11890 | -7/Factory | Garrison activated, responded to threat 11963 | -7/Factory | Identified exit to Garrison 11968 | -7/Factory | Entered Garrison 11968 | -7/Garrison | Accompanied by 6 allies 12314 | -7/Garrison | Triggered checkpoint 12348 | -7/Garrison | Triggered checkpoint 12372 | -7/Garrison | Triggered checkpoint 12426 | -7/Garrison | Discovered new exit (range 10) 12518 | -7/Garrison | Triggered checkpoint 12536 | -7/Garrison | Garrison Relay disabled 12718 | -7/Garrison | Triggered checkpoint 12730 | -7/Garrison | Garrison Relay disabled 12806 | -7/Garrison | Discovered new exit (range 15) 13062 | -7/Garrison | Garrison Relay disabled 13300 | -7/Garrison | Triggered checkpoint 13319 | -7/Garrison | Garrison Relay disabled 13374 | -7/Garrison | Discovered new exit (range 10) 13430 | -7/Garrison | Expanded RIF knowledge: Structural Interface 13740 | -7/Garrison | Build established: Botlord-Mutant 13854 | -7/Garrison | Triggered checkpoint 14141 | -7/Garrison | Entered Factory 14141 | -6/Factory | Accompanied by 10 allies 14141 | -6/Factory | Evolved 2 slots: Propulsion x1, Utility x1 14253 | -6/Factory | Identified exit to Lower Caves 14394 | -6/Factory | Entered Lower Caves 14394 | -6/Lower Caves | Accompanied by 11 allies 14395 | -6/Lower Caves | Encountered a Warlord checkpoint 14436 | -6/Lower Caves | Learned 8 Factory zone layouts 14906 | -6/Lower Caves | Attracted the attention of an 0b10 base 14926 | -6/Lower Caves | Learned Factory trap positions 14926 | -6/Lower Caves | Learned Factory terminal intel 14926 | -6/Lower Caves | Learned Factory garrison access intel 15253 | -6/Lower Caves | Discovered new exit (range 7) 15281 | -6/Lower Caves | Entered another Lower Caves area 15281 | -6/Lower Caves | Accompanied by 14 allies 15283 | -6/Lower Caves | Attracted the attention of an 0b10 checkpoint 15321 | -6/Lower Caves | Discovered new exit (range 9) 15361 | -6/Lower Caves | Learned Factory security intel 15733 | -6/Lower Caves | Spotted B-75 Beast 15741 | -6/Lower Caves | Destroyed B-75 Beast 15825 | -6/Lower Caves | Attracted the attention of an 0b10 base 16005 | -6/Lower Caves | Discovered new exit (range 13) 16190 | -6/Lower Caves | Entered Zion 16190 | -6/Zion | Accompanied by 14 allies 16252 | -6/Zion | Discovered new exit (range 16) 16499 | -6/Zion | RIF detected upon attempting to enter Zion 16499 | -6/Zion | Attacked by Zionites 16499 | -6/Zion | Spotted JN-7IV(B) 16499 | -6/Zion | Spotted VX-3XI(B) 16531 | -6/Zion | Destroyed JN-7IV(B) 16537 | -6/Zion | Allies destroyed VX-3XI(B) 17258 | -6/Zion | Learned Factory machine intel 17353 | -6/Zion | Learned 4 Factory zone layouts 17411 | -6/Zion | Extracted access codes from Imprinter's data core 17804 | -6/Zion | Entered Proximity Caves 17804 | -5/Proximity Caves | Accompanied by 8 allies 17883 | -5/Proximity Caves | Spotted B-75 Beast 17899 | -5/Proximity Caves | Allies destroyed B-75 Beast 17902 | -5/Proximity Caves | Identified exit to Factory 17919 | -5/Proximity Caves | Attracted the attention of an 0b10 checkpoint 18370 | -5/Proximity Caves | Entered Factory 18370 | -5/Factory | Evolved 2 slots: Utility x2 18371 | -5/Factory | Identified exit to Upper Caves 18372 | -5/Factory | Loaded intel: 84 trap records 18374 | -5/Factory | Loaded intel: 280 machine locations 18375 | -5/Factory | Loaded intel: 20 terminal locations 18376 | -5/Factory | Loaded intel: 3 garrison access locations 18812 | -5/Factory | Discovered new exit (range 13) 18828 | -5/Factory | Identified exit to Garrison 18832 | -5/Factory | Entered Garrison 18880 | -5/Garrison | Triggered checkpoint 18912 | -5/Garrison | Garrison Relay disabled 19031 | -5/Garrison | Spotted B-75 Beast 19054 | -5/Garrison | System corruption reached 10% 19056 | -5/Garrison | Triggered checkpoint 19070 | -5/Garrison | Hijacked Beast 6a control node with streamctrl_high 19113 | -5/Garrison | Lost 5 parts (1n4u) 19126 | -5/Garrison | Triggered checkpoint 19240 | -5/Garrison | Triggered checkpoint 19354 | -5/Garrison | Triggered checkpoint 19382 | -5/Garrison | Triggered checkpoint 19415 | -5/Garrison | Discovered new exit (range 10) 19557 | -5/Garrison | Garrison Relay disabled 19580 | -5/Garrison | Garrison Relay disabled 19637 | -5/Garrison | Spotted B-75 Beast 19637 | -5/Garrison | Spotted B-75 Beast 19726 | -5/Garrison | Garrison Relay disabled 19759 | -5/Garrison | Discovered new exit (range 8) 19775 | -5/Garrison | Expanded RIF knowledge: Coupler Efficiency 19881 | -5/Garrison | Discovered new exit (range 7) 19916 | -5/Garrison | Spotted B-75 Beast 20018 | -5/Garrison | Triggered checkpoint 20043 | -5/Garrison | Garrison Relay disabled 20318 | -5/Garrison | Found Gamma Bomb Array 20322 | -5/Garrison | Found Gamma Bomb Array 20789 | -5/Garrison | Entered Factory 20789 | -4/Factory | Accompanied by 3 allies 20789 | -4/Factory | Evolved 2 slots: Utility x2 20922 | -4/Factory | Found Quantum Capacitor 21184 | -4/Factory | Identified exit to Garrison 21198 | -4/Factory | Entered Garrison 21198 | -4/Garrison | Accompanied by 4 allies 21292 | -4/Garrison | Found Enh. Force Lance 21432 | -4/Garrison | Triggered checkpoint 21509 | -4/Garrison | Triggered checkpoint 21526 | -4/Garrison | Triggered checkpoint 21534 | -4/Garrison | Triggered checkpoint 21551 | -4/Garrison | Triggered checkpoint 21685 | -4/Garrison | Discovered new exit (range 10) 21712 | -4/Garrison | Triggered checkpoint 21719 | -4/Garrison | Garrison Relay disabled 21762 | -4/Garrison | Triggered checkpoint 21771 | -4/Garrison | Garrison Relay disabled 22070 | -4/Garrison | Discovered new exit (range 15) 22138 | -4/Garrison | Garrison Relay disabled 22148 | -4/Garrison | Triggered checkpoint 22279 | -4/Garrison | Garrison Relay disabled 22561 | -4/Garrison | Triggered checkpoint 22703 | -4/Garrison | Garrison Relay disabled 22736 | -4/Garrison | Discovered new exit (range 8) 22754 | -4/Garrison | Expanded RIF knowledge: Autoassimilate 23258 | -4/Garrison | Entered Research 23258 | -3/Research | Accompanied by 9 allies 23258 | -3/Research | Evolved 2 slots: Power x1, Utility x1 23285 | -3/Research | Identified exit to Armory 23285 | -3/Research | Identified exit to Quarantine 23595 | -3/Research | Garrison activated, responded to threat 23702 | -3/Research | Garrison activated, responded to threat 23739 | -3/Research | Entered Quarantine 23754 | -3/Quarantine | Found Alien Artifact 23757 | -3/Quarantine | Found Alien Artifact 23932 | -3/Quarantine | Found Alien Artifact 23932 | -3/Quarantine | Identified Phase Armor 23962 | -3/Quarantine | Discovered new exit (range 11) 23993 | -3/Quarantine | Identified exit to Garrison 24182 | -3/Quarantine | Found Alien Impact Weapon 24182 | -3/Quarantine | Identified Core Stripper 24220 | -3/Quarantine | Found Alien Energy Cannon 24220 | -3/Quarantine | Identified Core Cannon 24311 | -3/Quarantine | Garrison activated, responded to threat 24348 | -3/Quarantine | Spotted Alpha 7 24400 | -3/Quarantine | P-80 Master assimilated allied Artificer 8a 24458 | -3/Quarantine | Garrison activated, responded to threat 24463 | -3/Quarantine | Lost 12 parts (2p2n3u5w) 24601 | -3/Quarantine | Entered Garrison 24601 | -3/Garrison | Accompanied by 3 allies 24792 | -3/Garrison | Spotted B-86 Titan 24819 | -3/Garrison | Garrison Relay disabled 24933 | -3/Garrison | Assimilated Titan 8a with formatsys_high 24940 | -3/Garrison | Triggered checkpoint 24942 | -3/Garrison | Triggered checkpoint 24946 | -3/Garrison | Triggered checkpoint 24949 | -3/Garrison | Core integrity fell below 50% 25041 | -3/Garrison | Lost 6 parts (1p1n1u3w) 25233 | -3/Garrison | Found Hvy. Reflective Plating 25248 | -3/Garrison | Triggered checkpoint 25452 | -3/Garrison | Garrison Relay disabled 25541 | -3/Garrison | Discovered new exit (range 15) 25580 | -3/Garrison | Expanded RIF knowledge: Threat Obfuscation 25722 | -3/Garrison | Triggered checkpoint 25762 | -3/Garrison | Triggered checkpoint 26063 | -3/Garrison | Discovered new exit (range 10) 26094 | -3/Garrison | Triggered checkpoint 26122 | -3/Garrison | Garrison Relay disabled 26361 | -3/Garrison | Triggered checkpoint 26634 | -3/Garrison | Garrison Relay disabled 26829 | -3/Garrison | Discovered new exit (range 12) 26863 | -3/Garrison | Entered Research 26863 | -2/Research | Accompanied by 4 allies 26863 | -2/Research | Evolved 2 slots: Utility x2 27082 | -2/Research | Spotted B-90 Cyclops 27110 | -2/Research | Discovered new exit (range 5) 27130 | -2/Research | Entered Access 27130 | -1/Access | Accompanied by 6 allies 27130 | -1/Access | Evolved 2 slots: Utility x2 27150 | -1/Access | Identified exit to Garrison 27155 | -1/Access | Entered Garrison 27155 | -1/Garrison | Accompanied by 6 allies 27188 | -1/Garrison | Triggered checkpoint 27197 | -1/Garrison | Garrison Relay disabled 27384 | -1/Garrison | Spotted B-99 Colossus 27423 | -1/Garrison | Assimilated Colossus 10a with formatsys_high 27430 | -1/Garrison | Triggered checkpoint 27434 | -1/Garrison | Triggered checkpoint 27477 | -1/Garrison | Triggered checkpoint 27486 | -1/Garrison | Triggered checkpoint 28225 | -1/Garrison | Discovered new exit (range 14) 28327 | -1/Garrison | Triggered checkpoint 28338 | -1/Garrison | Garrison Relay disabled 28448 | -1/Garrison | Garrison Relay disabled 28507 | -1/Garrison | Expanded RIF knowledge: Program Shield 28680 | -1/Garrison | Garrison Relay disabled 28727 | -1/Garrison | Discovered new exit (range 10) 28939 | -1/Garrison | Triggered checkpoint 29002 | -1/Garrison | Garrison Relay disabled 29125 | -1/Garrison | Triggered checkpoint 29302 | -1/Garrison | Found Prototype Ballistic Gun 29302 | -1/Garrison | Identified Multirail 29424 | -1/Garrison | Discovered new exit (range 14) 29704 | -1/Garrison | Entered Access 29704 | -1/Access | Accompanied by 4 allies 30001 | -1/Access | First assault squad dispatched 30203 | -1/Access | Spotted B-99 Colossus 30205 | -1/Access | Assimilated Colossus 10b with formatsys_high 30521 | -1/Access | Discovered new exit (range 5) 30754 | -1/Access | P-80 Master assimilated allied Artificer 10b 30796 | -1/Access | Found Multirail 30804 | -1/Access | Found Multirail 30940 | -1/Access | Spotted B-99 Colossus 30951 | -1/Access | Assimilated Colossus 10c with formatsys_high 30952 | -1/Access | Spotted B-99 Colossus 30968 | -1/Access | Allies destroyed B-99 Colossus 31119 | -1/Access | Core integrity fell below 50% 31778 | -1/Access | Found Multirail 31780 | -1/Access | Found Multirail 32352 | -1/Access | Lost 3 parts (2u1w) 32648 | -1/Access | Energy Cycler disabled 33177 | -1/Access | Destroyed 8 combat bots 33184 | -1/Access | Lost 7 parts (2n2u3w) 33366 | -1/Access | Core integrity fell below 20% 33416 | -1/Access | Lost 8 parts (3p1n2u2w) 33454 | -1/Access | System corruption reached 10% 33506 | -1/Access | Lost 4 parts (1n2u1w) 33580 | *** | Escaped! Last Messages --------------- 33545_ Acquired Arm. Heavy Treads. 33550_ Acquired Adv. Cooling System. 33566_ R-10 Processor collects Hvy. Machine Gun. 33567_ System corrupted: Matter fused (-7). 33570_ C-30 ARC bursts open, deploying its payload. 33570_ G-73 Enforcer unfolds itself. 33570_ L-61 Swordsman unfolds itself. 33570_ G-73 Enforcer unfolds itself. 33570_ C-30 ARC bursts open, deploying its payload. 33570_ G-73 Enforcer unfolds itself. 33570_ B-74 Champion unfolds itself. 33570_ G-73 Enforcer unfolds itself. 33570_ E-15 Imp unfolds itself. 33570_ Nova Cannon blown off. 33570_ Com. Mass Driver blown off. 33570_ Lgt. Quantum Reactor blown off. 33572_ Acquired Nova Cannon. 33575_ Acquired Lgt. Quantum Reactor. 33575_ Nova Cannon destroyed. 33578_ Acquired Com. Mass Driver. Map ----- +----------------------------------------------------+ | ########## #???????# #??## !!! !! | | "T #???????# #??## !!! ! | | * "" #??????## #???# | | ######+### #??????# "" "" #???# % | | # % ## ########## ""R"" #???# % % | | # ## # # """" #???# % ## | | # " ## # [ # #???########% #? | | # """ ## %+ "" # ??#?##########%= #? | | # """ ## # """####?###????# #! #? | | # " ## # T"#???????????# ! # #? | | # ##%%# """#???????????# # #? | | # ## *# "" #???????????# # % #? | | # ! ## [# #???????????# + [ ## | | ###########%%# #???????????# #%=!!# | | ??????????#[ ##########???????????# #[%%=# | | #?????????# #????????????????????# #=!=%#[ | | #?????????#% #????????????????????# # %=%# | | #?????????# #?????????????????# ########## !%=# | | #?????????#%%##??????????????# #?????????# =# | | #????????## #######"####################### + | | #????????## !"T"""" "% ### # | | #????????## % """" % """" ### # | | #????????## " g"""" "??" ###[= # | | #????????## " g g " "?"" = * ! ! # | | #????????## "eg" " "?" [ * *=% # | | ??????????# " " @" " "?" ! !% ## | | ??????????# " " " "?" * #? | | ??????????# ! " """""" "?" % # ##? | | ??????????# % ! " "?" # #?? | | #######???#%=! " "?" # #?? | | #???#%%#######"##########?########## #?? | | #???#*!####????????????????????????# ##? | | #???# %##############??????????????# !% ##? | | [ #???#= # #??????????????# ##? | | = = #???#% # % #??????######### = ### | | % "#???#%%+ #??????# ! %[ | | ! %#####= # ########!]* = == | | != " %!%% # + = !%!] !% | | = */%== + # =%!%!=! ! | | ############## ]] # !=**!= | | ######???????# # % " """"" | | #???????# ! # """ """"" | | #???????# # ! """"" """"" | | #???????# # """"" """"" | | " #???????# # """"" """"" | | """ #????########+#####+## | | "" #????# # ##??# ! | | " #???### #### ##??# =% | | #???# #### * | | #???## ## | +----------------------------------------------------+ Best States ------------- Heat Dissipation 128 Energy Generation 45 Energy Capacity 1875 Matter Stores 300 Matter Capacity 300 Sight Range 16 Terrain Scan Range 16 Terrain Scan Density 10 Jamming Range 16 Armor Coverage 1200 Resistance: TH 25 Resistance: EM 25 Core Shielding 30 Utility Shielding 33 Phase Shifting 10 Evasion (%) 42 Targeting Accuracy 12 Core Analysis 10 Recoil Reduction 3 Energy Filtering 50 Relay Coupler Types 168 Relay Coupler Value 7 Item Schematics ----------------- None Robot Schematics ------------------ None Fabricated ------------ O-24 Administrator | x1 | -7/Factory | Preloaded Alien Tech Used ----------------- Phase Armor Core Stripper Core Cannon Achievements -------------- Maximum Efficiency Sunderer Challenges ------------ None Game ------ Seed ContainmentUltimateInverter Manual? 0 Play Time 06:52:12 Cumulative 236.5 hours Start 2021.05.12 @ 09:52:11 End 2021.05.13 @ 17:29:03 Sessions 5 Manual Loads 0 Difficulty Rogue Special Mode None Game No. 93 Rogue 93 Adventurer 0 Explorer 0 Win Type 0 Total 5 Types 5/0/0/0/0/0/0/0/0 Lore% 67 Gallery% 79 Achievement% 59 Wizard Run 0 Options --------- ASCII 0 Keyboard 0 Movement Mouse Keybinds 0 Fullscreen 2 Font 12/Smallcaps Map View 83x54 Tactical HUD 1 Map Filters NONE Filters NONE Steam X RUN: a5028f4f-b465-486c-8c29-aade4d9fcc8b